fUSD/lending_fUSD_20250826
["ID","MTS","AMOUNT","RATE_DAILY","PERIOD"]
[381429238,1756193471909,-808.0,0.00025479,2]
[381429239,1756193471919,-1967.0,0.00025479,2]
[381429240,1756193471928,-546.0,0.0002548,2]
[381429241,1756193471938,-18705.4,0.000255,7]
[381429242,1756193471947,-1000.0,0.00025505,2]
[381429243,1756193471957,-250.0,0.00025521,2]
[381429244,1756193471967,-32828.96812279,0.00025597,3]
[381429245,1756193471978,-152.0,0.00025606,3]
[381429246,1756193471988,-151.0,0.00025606,3]
[381429247,1756193471998,-152.0,0.00025606,3]
[381429248,1756193472007,-151.0,0.00025606,3]
[381429249,1756193472017,-151.0,0.00025606,3]
[381429250,1756193472026,-152.0,0.00025606,3]
[381429251,1756193472037,-151.0,0.00025606,3]
[381429252,1756193472046,-1221.0,0.00025606,3]
[381429253,1756193472056,-151.0,0.00025606,3]
[381429254,1756193472065,-152.0,0.00025606,3]
[381429255,1756193472075,-1221.0,0.00025606,3]
[381429256,1756193472084,-151.0,0.00025606,3]
[381429257,1756193472094,-152.0,0.00025606,3]
[381429258,1756193472103,-1221.0,0.00025606,3]
[381429259,1756193472112,-152.0,0.00025606,3]
[381429260,1756193472122,-151.0,0.00025606,3]
[381429261,1756193472132,-152.0,0.00025606,3]
[381429262,1756193472141,-152.0,0.00025606,3]
[381429263,1756193472152,-1221.0,0.00025606,3]
[381429264,1756193472162,-151.0,0.00025606,3]
[381429265,1756193472172,-152.0,0.00025606,3]
[381429266,1756193472181,-1221.0,0.00025606,3]
[381429267,1756193472191,-152.0,0.00025606,3]
[381429268,1756193472200,-1221.0,0.00025606,3]
[381429269,1756193472209,-152.0,0.00025606,3]
[381429270,1756193472219,-1221.0,0.00025606,3]
[381429271,1756193472228,-152.0,0.00025606,3]
[381429272,1756193472238,-152.0,0.00025606,3]
[381429273,1756193472247,-151.0,0.00025606,3]
[381429274,1756193472257,-152.0,0.00025606,3]
[381429275,1756193472266,-152.0,0.00025606,3]
[381429276,1756193472276,-152.0,0.00025606,3]
[381429277,1756193472289,-1221.0,0.00025606,3]
[381429278,1756193472298,-152.0,0.00025606,3]
[381429279,1756193472307,-1221.0,0.00025606,3]
[381429280,1756193472316,-152.0,0.00025606,3]
[381429281,1756193472326,-1221.0,0.00025606,3]
[381429282,1756193472336,-152.0,0.00025606,3]
[381429283,1756193472345,-152.0,0.00025606,3]
[381429284,1756193472354,-1221.0,0.00025606,3]
[381429285,1756193472364,-154.0,0.00025606,3]
[381429286,1756193472373,-152.0,0.00025606,3]
[381429287,1756193472383,-152.0,0.00025606,3]
[381429288,1756193472392,-154.0,0.00025606,3]
[381429289,1756193472402,-152.0,0.00025606,3]
[381429290,1756193472411,-154.0,0.00025606,3]
[381429291,1756193472420,-152.0,0.00025606,3]
[381429292,1756193472429,-1221.0,0.00025606,3]
[381429293,1756193472439,-152.0,0.00025606,3]
[381429294,1756193472448,-1221.0,0.00025606,3]
[381429295,1756193472458,-154.0,0.00025606,3]
[381429296,1756193472468,-152.0,0.00025606,3]
[381429297,1756193472477,-1221.0,0.00025606,3]
[381429298,1756193472487,-154.0,0.00025606,3]
[381429299,1756193472496,-152.0,0.00025606,3]
[381429300,1756193472506,-152.0,0.00025606,3]
[381429301,1756193472516,-202.61513995,0.00025606,3]
[381429302,1756193472526,-1221.0,0.00025606,3]
[381429303,1756193472539,-154.0,0.00025606,3]
[381429304,1756193472548,-154.0,0.00025606,3]
[381429305,1756193472560,-154.0,0.00025606,3]
[381429306,1756193472571,-154.0,0.00025606,3]
[381429307,1756193472581,-154.0,0.00025606,3]
[381429308,1756193472726,-154.0,0.00025606,3]
[381429309,1756193472747,-154.0,0.00025606,3]
[381429310,1756193472757,-2677.01,0.00025666,2]
[381429311,1756193472767,-928.57,0.000257,2]
[381429312,1756193472780,-1700.0,0.0002575,2]
[381429313,1756193472790,-1900.0,0.0002575,2]
[381429314,1756193472799,-419.0,0.00025753,2]
[381429315,1756193472809,-1196.0,0.00025753,2]
[381429316,1756193472820,-808.0,0.00025753,2]
[381429317,1756193472831,-1967.0,0.00025753,2]
[381429318,1756193472841,-546.0,0.00025754,2]
[381429319,1756193472851,-233.51889341,0.00025754,2]
[381429320,1756193472863,-503.0,0.00025767,2]
[381429321,1756193472873,-401.19111454,0.00025806,2]
[381429322,1756193472883,-332.60791905,0.00025806,2]
[381429323,1756193472893,-775.47832561,0.00025809,2]
[381429324,1756193472904,-2677.01,0.00025955,2]
[381429325,1756193472915,-5621.7269717,0.00025982,2]
[381429326,1756193472924,-1194.3950741,0.00025982,2]
[381429327,1756193472934,-211.891676,0.00025982,2]
[381429328,1756193472943,-587.00557814,0.0002599,2]
[381429329,1756193472953,-900.0,0.00026,27]
[381429330,1756193472963,-4420.62671448,0.00026,2]
[381429331,1756193472973,-4433.65,0.00026,2]
[381429332,1756193472984,-2667.68583368,0.00026,2]
[381429333,1756193472993,-211.55621439,0.00026,2]
[381429334,1756193473003,-243.36,0.00026,7]
[381429335,1756193473012,-242.96,0.00026,7]
[381429336,1756193473022,-730.1,0.00026,7]
[381429337,1756193473034,-1000.0,0.00026,2]
[381429338,1756193473043,-1216.84,0.00026,7]
[381429339,1756193473053,-308.27,0.00026,7]
[381429340,1756193473064,-1000000.0,0.00026,2]
[381429341,1756193473076,-3046.48,0.00026,7]
[381429342,1756193473086,-151.0,0.00026,7]
[381429343,1756193473097,-151.0,0.00026,7]
[381429344,1756193473107,-230.116841,0.00026,7]
[381429345,1756193473118,-230.116841,0.00026,7]
[381429346,1756193473127,-230.116841,0.00026,7]
[381429347,1756193473137,-230.116841,0.00026,7]
[381429348,1756193473147,-151.0,0.00026,7]
[381429349,1756193473157,-151.0,0.00026,7]
[381429350,1756193473166,-151.0,0.00026,7]
[381429351,1756193473176,-151.0,0.00026,7]
[381429352,1756193473187,-151.0,0.00026,7]
[381429353,1756193473199,-151.0,0.00026,7]
[381429354,1756193473209,-151.0,0.00026,7]
[381429355,1756193473218,-151.0,0.00026,7]
[381429356,1756193473227,-151.0,0.00026,7]
[381429357,1756193473237,-151.0,0.00026,7]
[381429358,1756193473246,-229.129269,0.00026,7]
[381429359,1756193473256,-229.129269,0.00026,7]
[381429360,1756193473267,-229.129269,0.00026,7]
[381429361,1756193473277,-229.129269,0.00026,7]
[381429362,1756193473288,-151.0,0.00026,7]
[381429363,1756193473297,-151.0,0.00026,7]
[381429364,1756193473307,-151.0,0.00026,7]
[381429365,1756193473318,-153.4972,0.00026,7]
[381429366,1756193473328,-151.0,0.00026,7]
[381429367,1756193473338,-151.0,0.00026,7]
[381429368,1756193473348,-151.0,0.00026,7]
[381429369,1756193473358,-151.0,0.00026,7]
[381429370,1756193473368,-151.0,0.00026,7]
[381429371,1756193473378,-151.0,0.00026,7]
[381429372,1756193473387,-293.796465,0.00026,7]
[381429373,1756193473397,-293.796465,0.00026,7]
[381429374,1756193473407,-293.796465,0.00026,7]
[381429375,1756193473418,-293.796465,0.00026,7]
[381429376,1756193473429,-151.0,0.00026,7]
[381429377,1756193473439,-247.320626,0.00026,7]
[381429378,1756193473451,-151.0,0.00026,7]
[381429379,1756193473462,-151.0,0.00026,7]
[381429380,1756193473471,-151.0,0.00026,7]
[381429381,1756193473482,-234.395746,0.00026,7]
[381429382,1756193473491,-1057.85,0.00026,2]
[381429383,1756193473500,-151.0,0.00026,7]
[381429384,1756193473511,-151.0,0.00026,7]
[381429385,1756193473520,-151.0,0.00026,7]
[381429386,1756193473529,-151.0,0.00026,7]
[381429387,1756193473539,-151.0,0.00026,7]
[381429388,1756193473549,-151.0,0.00026,7]
[381429389,1756193473559,-151.0,0.00026,7]
[381429390,1756193473572,-151.0,0.00026,7]
[381429391,1756193473583,-151.0,0.00026,7]
[381429392,1756193473593,-151.0,0.00026,7]
[381429393,1756193473605,-151.0,0.00026,7]
[381429394,1756193473615,-151.0,0.00026,7]
[381429395,1756193473624,-151.0,0.00026,7]
[381429396,1756193473635,-151.0,0.00026,7]
[381429397,1756193473645,-151.587613,0.00026,7]
[381429398,1756193473655,-208.128348,0.00026,7]
[381429399,1756193473664,-208.128348,0.00026,7]
[381429400,1756193473674,-151.0,0.00026,7]
[381429401,1756193473684,-151.0,0.00026,7]
[381429402,1756193473693,-151.0,0.00026,7]
[381429403,1756193473703,-151.0,0.00026,7]
[381429404,1756193473713,-151.0,0.00026,7]
[381429405,1756193473723,-151.0,0.00026,7]
[381429406,1756193473734,-151.0,0.00026,7]
[381429407,1756193473744,-282.267571,0.00026,7]
[381429408,1756193473754,-1232.336026,0.00026,7]
[381429409,1756193473763,-1232.336026,0.00026,7]
[381429410,1756193473773,-1205.766359,0.00026,7]
[381429411,1756193473783,-1232.336026,0.00026,7]
[381429412,1756193473792,-296.276724,0.00026,7]
[381429413,1756193473802,-1232.336026,0.00026,7]
[381429414,1756193473812,-1205.766359,0.00026,7]
[381429415,1756193473823,-151.0,0.00026,7]
[381429416,1756193473833,-296.276724,0.00026,7]
[381429417,1756193473842,-1205.766359,0.00026,7]
[381429418,1756193473852,-296.276724,0.00026,7]
[381429419,1756193473861,-1205.766359,0.00026,7]
[381429420,1756193473871,-151.0,0.00026,7]
[381429421,1756193473881,-151.0,0.00026,7]
[381429422,1756193473892,-151.0,0.00026,7]
[381429423,1756193473903,-296.276724,0.00026,7]
[381429424,1756193473915,-151.0,0.00026,7]
[381429425,1756193473928,-151.0,0.00026,7]
[381429426,1756193473939,-151.0,0.00026,7]
[381429427,1756193473948,-151.0,0.00026,7]
[381429428,1756193473958,-151.253187,0.00026,7]
[381429429,1756193473968,-151.0,0.00026,7]
[381429430,1756193473978,-151.0,0.00026,7]
[381429431,1756193473988,-151.0,0.00026,7]
[381429432,1756193473999,-151.0,0.00026,7]
[381429433,1756193474009,-151.0,0.00026,7]
[381429434,1756193474018,-256.342307,0.00026,7]
[381429435,1756193474028,-165.718375,0.00026,7]
[381429436,1756193474038,-256.342307,0.00026,7]
[381429437,1756193474048,-295.460066,0.00026,7]
[381429438,1756193474057,-151.0,0.00026,7]
[381429439,1756193474067,-256.342307,0.00026,7]
[381429440,1756193474076,-256.342302,0.00026,7]
[381429441,1756193474086,-492.45,0.00026,7]
[381429442,1756193474095,-492.45,0.00026,7]
[381429443,1756193474105,-492.45,0.00026,7]
[381429444,1756193474114,-492.45,0.00026,7]
[381429445,1756193474124,-152.344187,0.00026,7]
[381429446,1756193474134,-151.0,0.00026,7]
[381429447,1756193474143,-193.345787,0.00026,7]
[381429448,1756193474152,-169.603307,0.00026,7]
[381429449,1756193474162,-169.603307,0.00026,7]
[381429450,1756193474171,-169.603307,0.00026,7]
[381429451,1756193474180,-599.523542,0.00026,7]
[381429452,1756193474190,-169.603311,0.00026,7]
[381429453,1756193474200,-599.523542,0.00026,7]
[381429454,1756193474209,-224.098832,0.00026,7]
[381429455,1756193474219,-599.523542,0.00026,7]
[381429456,1756193474230,-204.116161,0.00026,7]
[381429457,1756193474239,-224.098832,0.00026,7]
[381429458,1756193474251,-599.523542,0.00026,7]
[381429459,1756193474262,-204.116161,0.00026,7]
[381429460,1756193474272,-151.0,0.00026,7]
[381429461,1756193474286,-224.098832,0.00026,7]
[381429462,1756193474295,-151.0,0.00026,7]
[381429463,1756193474304,-224.09884,0.00026,7]
[381429464,1756193474314,-204.116161,0.00026,7]
[381429465,1756193474325,-151.0,0.00026,7]
[381429466,1756193474338,-274.912965,0.00026,7]
[381429467,1756193474348,-204.116169,0.00026,7]
[381429468,1756193474359,-151.0,0.00026,7]
[381429469,1756193474368,-151.0,0.00026,7]
[381429470,1756193474378,-957.774406,0.00026,7]
[381429471,1756193474389,-151.0,0.00026,7]
[381429472,1756193474399,-957.774406,0.00026,7]
[381429473,1756193474408,-151.0,0.00026,7]
[381429474,1756193474418,-195.753321,0.00026,7]
[381429475,1756193474427,-794.694448,0.00026,7]
[381429476,1756193474436,-195.753321,0.00026,7]
[381429477,1756193474446,-957.774406,0.00026,7]
[381429478,1756193474455,-794.694448,0.00026,7]
[381429479,1756193474465,-957.774414,0.00026,7]
[381429480,1756193474474,-794.694448,0.00026,7]
[381429481,1756193474484,-195.753321,0.00026,7]
[381429482,1756193474493,-195.753318,0.00026,7]
[381429483,1756193474503,-244.248112,0.00026,7]
[381429484,1756193474512,-794.694447,0.00026,7]
[381429485,1756193474521,-151.0,0.00026,7]
[381429486,1756193474531,-4517.819611,0.00026,7]
[381429487,1756193474541,-4517.819611,0.00026,7]
[381429488,1756193474550,-4517.819611,0.00026,7]
[381429489,1756193474561,-4517.819617,0.00026,7]
[381429490,1756193474571,-4000.0,0.00026,4]
[381429491,1756193474581,-600.0,0.00026,2]
[381429492,1756193474591,-150.0,0.00026013,2]
[381429493,1756193474601,-419.0,0.00026027,2]
[381429494,1756193474610,-1196.0,0.00026027,2]
[381429495,1756193474621,-808.0,0.00026027,2]
[381429496,1756193474630,-1967.0,0.00026027,2]
[381429497,1756193474640,-296.47059111,0.00026027,2]
[381429498,1756193474650,-546.0,0.00026028,2]
[381429499,1756193474660,-1658.0,0.00026067,2]
[381429500,1756193474669,-599.0,0.00026067,2]
[381429501,1756193474679,-566.0,0.00026067,2]
[381429502,1756193474688,-1298.0,0.00026067,2]
[381429503,1756193474698,-1173.0,0.00026067,2]
[381429504,1756193474708,-895.0,0.00026067,2]
[381429505,1756193474718,-2031.0,0.00026067,2]
[381429506,1756193474728,-3374.0,0.00026067,2]
[381429507,1756193474738,-6146.0,0.00026067,2]
[381429508,1756193474747,-1256.0,0.00026067,2]
[381429509,1756193474757,-926.0,0.00026067,2]
[381429510,1756193474767,-350.0,0.00026068,2]
[381429511,1756193474777,-1000.0,0.00026164,2]
[381429512,1756193474788,-18705.4,0.000262,7]
[381429513,1756193474798,-2677.01,0.00026243,2]
[381429514,1756193474808,-32828.96812279,0.00026293,5]
[381429515,1756193474818,-3000.0,0.00026298,2]
[381429516,1756193474828,-3409.99,0.00026298,7]
[381429517,1756193474838,-420.85806894,0.00026301,2]
[381429518,1756193474848,-1197.21471449,0.00026301,2]
[381429519,1756193474859,-820.0,0.00026301,2]
[381429520,1756193474868,-1982.22930971,0.00026301,2]
[381429521,1756193474878,-546.0,0.00026302,2]
[381429522,1756193474888,-242.15909246,0.00026302,2]
[381429523,1756193474899,-1000.0,0.00026395,2]
[381429524,1756193474908,-26867.78646428,0.000264,2]
[381429525,1756193474918,-152.0,0.00026474,3]
[381429526,1756193474928,-152.0,0.00026474,3]
[381429527,1756193475294,-152.0,0.00026474,3]
[381429528,1756193475304,-152.0,0.00026474,3]
[381429529,1756193475314,-152.0,0.00026474,3]
[381429530,1756193475324,-152.0,0.00026474,3]
[381429531,1756193475333,-152.0,0.00026474,3]
[381429532,1756193475343,-152.0,0.00026474,3]
[381429533,1756193475353,-152.0,0.00026474,3]
[381429534,1756193475363,-152.0,0.00026474,3]
[381429535,1756193475372,-152.0,0.00026474,3]
[381429536,1756193475382,-152.0,0.00026474,3]
[381429537,1756193475393,-152.0,0.00026474,3]
[381429538,1756193475404,-152.0,0.00026474,3]
[381429539,1756193475414,-152.0,0.00026474,3]
[381429540,1756193475423,-152.0,0.00026474,3]
[381429541,1756193475432,-152.0,0.00026474,3]
[381429542,1756193475442,-152.0,0.00026474,3]
[381429543,1756193475453,-152.0,0.00026474,3]
[381429544,1756193475463,-152.0,0.00026474,3]
[381429545,1756193475473,-152.0,0.00026474,3]
[381429546,1756193475482,-154.0,0.00026474,3]
[381429547,1756193475493,-714.0,0.0002652,2]
[381429548,1756193475503,-2677.01,0.00026531,2]
[381429549,1756193475513,-600.0,0.00026548,2]
[381429550,1756193475523,-546.0,0.00026576,2]
[381429551,1756193475533,-450.0,0.00026616,2]
[381429552,1756193475543,-427.37,0.00026676,2]
[381429553,1756193475554,-928.57,0.000267,2]
[381429554,1756193475570,-913.4221166,0.0002672,2]
[381429555,1756193475580,-190.5423975,0.0002672,2]
[381429556,1756193475590,-175.87250171,0.00026765,2]
[381429557,1756193475600,-221731.25516235,0.000268,2]
[381429558,1756193475611,-2677.01,0.0002682,2]
[381429559,1756193475622,-546.0,0.0002685,2]
[381429560,1756193475632,-251.11897888,0.0002685,2]
[381429561,1756193475643,-1472.35,0.00026884,2]
[381429562,1756193475653,-259.0910333,0.00026982,2]
[381429563,1756193475663,-4365.3523882,0.00026982,2]
[381429564,1756193475674,-928.5965258,0.00026982,2]
[381429565,1756193475685,-211.891676,0.00026982,2]
[381429566,1756193475695,-32828.96812279,0.0002699,6]
[381429567,1756193475706,-259.0910333,0.00026992,2]
[381429568,1756193475717,-662.7979775,0.00026992,2]
[381429569,1756193475729,-211.891676,0.00026992,2]
[381429570,1756193475742,-500.32999345,0.00027,2]
[381429571,1756193475754,-130368.55443911,0.00027,3]
[381429572,1756193475765,-250.0,0.00027,2]
[381429573,1756193475776,-1922.90735009,0.00027,14]
[381429574,1756193475789,-1010.91360595,0.00027,2]
[381429575,1756193475801,-3038.92105994,0.00027,2]
[381429576,1756193475812,-452.00840444,0.00027,30]
[381429577,1756193475824,-1800.0,0.00027,28]
[381429578,1756193475836,-3182.43188859,0.00027,30]
[381429579,1756193475848,-1000.0,0.00027,10]
[381429580,1756193475860,-243.36,0.00027,7]
[381429581,1756193475872,-242.96,0.00027,7]
[381429582,1756193475884,-144364.43400296,0.00027,2]
[381429583,1756193475895,-730.1,0.00027,7]
[381429584,1756193475906,-1216.84,0.00027,7]
[381429585,1756193475917,-308424.37320546,0.00027,2]
[381429586,1756193475929,-308.27,0.00027,7]
[381429587,1756193475943,-1000000.0,0.00027,2]
[381429588,1756193475952,-167.0,0.00027,2]
[381429589,1756193475963,-169.0,0.00027,2]
[381429590,1756193475972,-335.0,0.00027,2]
[381429591,1756193475983,-176.15574463,0.00027,2]
[381429592,1756193475993,-250.0,0.00027,2]
[381429593,1756193476005,-253.0,0.00027,2]
[381429594,1756193476015,-3046.48,0.00027,7]
[381429595,1756193476026,-18705.4,0.00027,7]
[381429596,1756193476038,-151.0,0.00027,7]
[381429597,1756193476048,-151.0,0.00027,7]
[381429598,1756193476058,-230.116841,0.00027,7]
[381429599,1756193476068,-230.116841,0.00027,7]
[381429600,1756193476078,-230.116841,0.00027,7]
[381429601,1756193476087,-230.116841,0.00027,7]
[381429602,1756193476096,-151.0,0.00027,7]
[381429603,1756193476106,-151.0,0.00027,7]
[381429604,1756193476116,-151.0,0.00027,7]
[381429605,1756193476126,-151.0,0.00027,7]
[381429606,1756193476136,-151.0,0.00027,7]
[381429607,1756193476146,-151.0,0.00027,7]
[381429608,1756193476155,-151.0,0.00027,7]
[381429609,1756193476165,-151.0,0.00027,7]
[381429610,1756193476175,-152.518366,0.00027,7]
[381429611,1756193476185,-229.129269,0.00027,7]
[381429612,1756193476194,-229.129269,0.00027,7]
[381429613,1756193476204,-229.129269,0.00027,7]
[381429614,1756193476214,-229.129269,0.00027,7]
[381429615,1756193476224,-151.0,0.00027,7]
[381429616,1756193476234,-151.0,0.00027,7]
[381429617,1756193476244,-151.0,0.00027,7]
[381429618,1756193476254,-151.0,0.00027,7]
[381429619,1756193476264,-151.0,0.00027,7]
[381429620,1756193476274,-151.0,0.00027,7]
[381429621,1756193476285,-151.0,0.00027,7]
[381429622,1756193476295,-293.796465,0.00027,7]
[381429623,1756193476305,-293.796465,0.00027,7]
[381429624,1756193476314,-293.796465,0.00027,7]
[381429625,1756193476324,-293.796465,0.00027,7]
[381429626,1756193476334,-151.0,0.00027,7]
[381429627,1756193476343,-151.0,0.00027,7]
[381429628,1756193476354,-151.0,0.00027,7]
[381429629,1756193476364,-151.0,0.00027,7]
[381429630,1756193476373,-174.011917,0.00027,7]
[381429631,1756193476383,-151.0,0.00027,7]
[381429632,1756193476394,-151.0,0.00027,7]
[381429633,1756193476403,-176.156936,0.00027,7]
[381429634,1756193476413,-151.0,0.00027,7]
[381429635,1756193476423,-151.0,0.00027,7]
[381429636,1756193476434,-151.0,0.00027,7]
[381429637,1756193476445,-151.0,0.00027,7]
[381429638,1756193476455,-151.0,0.00027,7]
[381429639,1756193476465,-151.0,0.00027,7]
[381429640,1756193476475,-151.0,0.00027,7]
[381429641,1756193476485,-208.128348,0.00027,7]
[381429642,1756193476495,-208.128348,0.00027,7]
[381429643,1756193476505,-151.0,0.00027,7]
[381429644,1756193476515,-151.0,0.00027,7]
[381429645,1756193476525,-151.0,0.00027,7]
[381429646,1756193476537,-151.0,0.00027,7]
[381429647,1756193476548,-151.0,0.00027,7]
[381429648,1756193476561,-151.0,0.00027,7]
[381429649,1756193476571,-151.0,0.00027,7]
[381429650,1756193476582,-1232.336026,0.00027,7]
[381429651,1756193476592,-1232.336026,0.00027,7]
[381429652,1756193476602,-1232.336026,0.00027,7]
[381429653,1756193476612,-1205.766359,0.00027,7]
[381429654,1756193476622,-296.276724,0.00027,7]
[381429655,1756193476632,-1232.336026,0.00027,7]
[381429656,1756193476642,-1205.766359,0.00027,7]
[381429657,1756193476652,-167.264405,0.00027,7]
[381429658,1756193476662,-296.276724,0.00027,7]
[381429659,1756193476672,-1205.766359,0.00027,7]
[381429660,1756193476682,-296.276724,0.00027,7]
[381429661,1756193476692,-1205.766359,0.00027,7]
[381429662,1756193476703,-151.0,0.00027,7]
[381429663,1756193476713,-151.0,0.00027,7]
[381429664,1756193476723,-151.0,0.00027,7]
[381429665,1756193476734,-296.276724,0.00027,7]
[381429666,1756193476744,-151.0,0.00027,7]
[381429667,1756193476754,-151.0,0.00027,7]
[381429668,1756193476763,-151.0,0.00027,7]
[381429669,1756193476773,-151.0,0.00027,7]
[381429670,1756193476783,-844.63891918,0.00027,10]
[381429671,1756193476795,-20895.91569959,0.00027,2]
[381429672,1756193476804,-458.7662338,0.00027,10]
[381429673,1756193476813,-4000.0,0.00027,4]
[381429674,1756193476824,-1576234.08701325,0.0002701,2]
[381429675,1756193477730,-161254.33943906,0.0002701,2]
[381429676,1756193477740,-93546.55559083,0.0002701,2]
[381429677,1756193479147,-228.854135,0.000164,2]
[381429678,1756193479156,-228.170272,0.000164,2]
[381429679,1756193479165,-228.894384,0.000164,2]
[381429680,1756193479175,-228.854135,0.000164,2]
[381429681,1756193479185,-167.73,0.00016515,2]
[381429682,1756193479195,-4155.0,0.00017067,2]
[381429683,1756193479204,-228.854135,0.00018,2]
[381429684,1756193479214,-228.170272,0.00018,2]
[381429685,1756193479224,-228.894384,0.00018,2]
[381429686,1756193479236,-228.854135,0.00018,2]
[381429687,1756193479247,-1171.964419,0.0001863,2]
[381429688,1756193479256,-1171.964419,0.0001863,2]
[381429689,1756193479266,-1171.964419,0.0001863,2]
[381429690,1756193479276,-500.0,0.00019178,2]
[381429691,1756193479286,-500.0,0.00019178,2]
[381429692,1756193479296,-500.0,0.00019178,2]
[381429693,1756193479307,-500.0,0.00019178,2]
[381429694,1756193479317,-500.0,0.00019178,2]
[381429695,1756193479327,-500.0,0.00019178,2]
[381429696,1756193479336,-500.0,0.00019178,2]
[381429697,1756193479346,-41.730891,0.0002,2]
[381429698,1756193479358,-108.269109,0.0002,2]
[381429699,1756193479369,-4155.0,0.00020067,2]
[381429700,1756193479379,-150.0,0.00020274,2]
[381429701,1756193479388,-274.15966566,0.00020548,2]
[381429702,1756193479397,-1171.964419,0.0002192,7]
[381429703,1756193479407,-1068.26204767,0.0002192,4]
[381429704,1756193479438,-228.894384,0.000164,2]
[381429705,1756193479448,-1419.755616,0.0002192,4]
[381429706,1756193479581,-2379.42943927,0.0002192,4]
[381429707,1756193479613,-110.80786134,0.0002192,4]
[381429708,1756193479623,-228.854135,0.0002192,7]
[381429709,1756193479633,-322.87170394,0.0002192,4]
[381429710,1756193479647,-4655.38326034,0.0002192,4]
[381429711,1756193479658,-228.170272,0.0002192,7]
[381429712,1756193479669,-2758.70452965,0.0002192,4]
[381429713,1756193479702,-758.0,0.00019178,2]
[381429714,1756193479713,-2219.55043463,0.0002192,4]
[381429715,1756193479724,-228.894384,0.0002192,7]
[381429716,1756193479734,-4978.25496428,0.0002192,4]
[381429717,1756193479745,-610.19582266,0.0002192,4]
[381429718,1756193479758,-4368.05914162,0.0002192,4]
[381429719,1756193479767,-1171.964419,0.0002192,7]
[381429720,1756193479777,-4978.25496428,0.0002192,4]
[381429721,1756193479788,-228.854135,0.0002192,7]
[381429722,1756193479798,-4978.25496428,0.0002192,4]
[381429723,1756193479807,-1171.964419,0.000225,7]
[381429724,1756193479817,-228.854135,0.000225,7]
[381429725,1756193479827,-228.170272,0.000225,7]
[381429726,1756193479846,-228.894384,0.000225,7]
[381429727,1756193479859,-1171.964419,0.000225,7]
[381429728,1756193479869,-150.0,0.00022729,2]
[381429729,1756193479880,-4155.0,0.00023067,2]
[381429730,1756193479889,-1171.964419,0.00023562,7]
[381429731,1756193479899,-228.854135,0.00023562,7]
[381429732,1756193479909,-228.170262,0.00023562,7]
[381429733,1756193479919,-228.894384,0.00023562,7]
[381429734,1756193479929,-1171.964427,0.00023562,7]
[381429735,1756193479939,-300.0,0.00025469,4]
[381429736,1756193479949,-4155.0,0.00026067,2]
[381429737,1756193479959,-154.0,0.00026474,3]